bitfinex/quotes_ETHUSD_20240607
["timestamp","ask_amount","ask_price","bid_price","bid_amount"]
[1717756117619,0.785,3808.0,3807.8,0.82599132]
[1717756119301,0.785,3808.0,3807.9,1.82553137]
[1717756120174,0.785,3808.0,3807.9,2.65119979]
[1717756120373,2.62577,3808.4,3807.9,2.65119979]
[1717756120590,0.785,3808.2,3808.1,0.55040414]
[1717756121134,0.785,3808.2,3808.1,0.58057187]
[1717756121785,3.2412,3808.6,3808.1,0.58057187]
[1717756121786,2.4912,3808.6,3808.1,0.58057187]
[1717756121985,0.785,3808.4,3808.2,0.55040414]
[1717756122440,0.785,3808.4,3808.3,0.03013443]
[1717756122654,2.62562,3808.7,3808.3,0.03013443]
[1717756122942,0.785,3808.6,3808.2,0.55040414]
[1717756123157,0.785,3808.4,3808.3,0.55040414]
[1717756124496,0.785,3808.4,3808.2,0.55040414]
[1717756125609,0.785,3808.4,3808.1,0.55040414]
[1717756126129,0.785,3808.2,3808.1,0.55040414]
[1717756126423,0.785,3808.4,3808.1,0.55040414]
[1717756130448,2.62573,3808.5,3808.1,0.55040414]
[1717756130748,0.785,3808.3,3808.1,0.55040414]
[1717756132530,3.41084,3808.3,3808.1,0.55040414]
[1717756132733,3.41084,3808.3,3808.0,0.55040414]
[1717756133315,5.66564,3808.3,3808.0,0.55040414]
[1717756133499,5.66564,3808.3,3807.9,0.55040414]
[1717756133743,2.62599,3808.1,3807.9,0.55040414]
[1717756135459,2.62599,3808.1,3808.0,0.55040414]
[1717756135597,2.62599,3808.1,3807.9,0.55040414]
[1717756135811,2.62599,3808.1,3808.0,0.02928901]
[1717756138107,2.62599,3808.1,3808.0,0.57969315]
[1717756140243,3.0398,3808.3,3808.0,0.57969315]
[1717756140545,0.785,3808.3,3808.0,0.57969315]
[1717756141306,2.62591,3808.2,3808.1,0.55040414]
[1717756141507,2.62591,3808.2,3808.1,0.57975889]
[1717756146647,2.62591,3808.2,3808.1,2.68068106]
[1717756147554,2.62591,3808.2,3808.1,0.02935475]
[1717756147860,3.41077,3808.5,3808.1,0.02935475]
[1717756148072,3.41077,3808.5,3808.3,0.55084594]
[1717756148354,3.41077,3808.5,3808.4,0.0293375]
[1717756148555,3.41077,3808.5,3808.4,0.58018344]
[1717756149362,3.41077,3808.5,3808.4,0.0293375]
[1717756149547,3.41077,3808.5,3808.3,0.55084594]
[1717756149719,3.41077,3808.5,3808.4,0.0293375]
[1717756150058,3.41077,3808.5,3808.4,0.55084594]
[1717756151667,3.41077,3808.5,3808.3,0.55084594]
[1717756151965,3.41077,3808.5,3808.4,0.0293375]
[1717756152160,3.41077,3808.5,3808.3,0.55084594]
[1717756152323,2.62577,3808.5,3808.4,0.0293375]
[1717756152525,3.41077,3808.5,3808.4,0.58018344]
[1717756153158,3.41077,3808.5,3808.3,0.55084594]
[1717756153353,3.41077,3808.5,3808.4,0.0293375]
[1717756153555,3.41077,3808.5,3808.3,0.55084594]
[1717756153726,3.41077,3808.5,3808.4,0.0293375]
[1717756153927,3.41077,3808.5,3808.3,0.55084594]
[1717756154129,3.41077,3808.5,3808.4,0.0293375]
[1717756154331,3.41077,3808.5,3808.3,0.55084594]
[1717756154529,4.16077,3808.5,3808.4,0.0293375]
[1717756154730,4.16077,3808.5,3808.3,0.55084594]
[1717756154935,4.16077,3808.5,3808.4,0.0293375]
[1717756155140,4.16077,3808.5,3808.3,0.55084594]
[1717756155336,4.16077,3808.5,3808.4,0.0293375]
[1717756155546,4.16077,3808.5,3808.3,0.55084594]
[1717756155750,4.16077,3808.5,3808.4,0.0293375]
[1717756155952,4.16077,3808.5,3808.3,0.55084594]
[1717756155953,3.37577,3808.5,3808.3,0.55084594]
[1717756156136,4.16077,3808.5,3808.4,0.0293375]
[1717756156342,4.16077,3808.5,3808.3,0.82566842]
[1717756156541,4.16077,3808.5,3808.4,0.0293375]
[1717756156941,4.16077,3808.5,3808.3,0.82566842]
[1717756157270,4.16077,3808.5,3808.4,0.0293375]
[1717756157571,4.16077,3808.5,3808.3,0.82566842]
[1717756157751,4.16077,3808.5,3808.4,0.0293375]
[1717756157952,4.16077,3808.5,3808.4,0.55153501]
[1717756158558,4.16077,3808.5,3808.3,0.82566842]
[1717756158727,4.16077,3808.5,3808.4,0.02936627]
[1717756158927,4.16077,3808.5,3808.3,0.82566842]
[1717756159131,4.16077,3808.5,3808.4,0.02936627]
[1717756159367,4.16077,3808.5,3808.3,0.82566842]
[1717756159574,4.16077,3808.5,3808.4,0.02936627]
[1717756159746,4.16077,3808.5,3808.3,0.82566842]
[1717756159946,4.16077,3808.5,3808.4,0.02924602]
[1717756160155,4.16077,3808.5,3808.4,0.55154114]
[1717756160639,6.62967,3808.5,3808.3,0.55154114]
[1717756160839,7.292637,3808.5,3808.3,0.55154114]
[1717756161132,7.292637,3808.5,3808.4,0.02924602]
[1717756161361,7.292637,3808.5,3808.3,0.55154114]
[1717756161531,7.292637,3808.5,3808.4,0.55154114]
[1717756163660,7.292637,3808.5,3808.3,0.55154114]
[1717756163972,0.785,3808.4,3808.3,0.55154114]
[1717756165178,2.62584,3808.3,3808.2,0.82566842]
[1717756165477,2.62584,3808.3,3808.2,2.68055366]
[1717756171280,5.90084,3808.3,3808.2,2.68055366]
[1717756175384,5.11584,3808.3,3808.2,2.68055366]
[1717756175689,5.90084,3808.3,3808.2,2.68055366]
[1717756180802,5.90084,3808.3,3808.2,0.02925578]
[1717756180973,6.828499,3808.3,3808.2,0.02925578]
[1717756181166,6.828499,3808.3,3808.2,0.58091143]
[1717756181652,10.204339,3808.3,3808.2,0.58091143]
[1717756181854,10.204339,3808.3,3808.2,0.55165565]
[1717756182356,0.75,3808.2,3808.1,0.55165565]
[1717756182557,2.5554339,3808.2,3808.1,0.57907208]
[1717756183685,4.9088339,3808.2,3808.1,0.02741643]
[1717756184360,0.75,3807.9,3807.8,0.55165565]
[1717756184599,1.535,3807.9,3807.8,0.57811714]
[1717756185381,3.37611,3807.9,3807.8,0.02646149]
[1717756185660,4.16111,3807.9,3807.7,0.55165565]
[1717756186083,4.16111,3807.9,3807.8,0.55165565]
[1717756186282,4.16111,3807.9,3807.8,0.57811714]
[1717756186451,4.16111,3807.9,3807.7,0.55165565]
[1717756186657,0.785,3807.8,3807.7,0.55165565]
[1717756187189,0.785,3807.8,3807.7,0.57812202]
[1717756188353,3.0504,3807.8,3807.7,0.57812202]
[1717756188560,3.0504,3807.8,3807.7,0.02646637]
[1717756190275,3.0504,3807.8,3807.7,0.57812202]
[1717756190276,0.785,3807.8,3807.7,0.57812202]
[1717756190477,0.785,3807.8,3807.7,0.02646637]
[1717756195207,3.37611,3807.9,3807.7,0.02646637]
[1717756195417,2.62611,3807.9,3807.7,0.02646637]
[1717756195920,2.62611,3807.9,3807.8,0.55165565]
[1717756196221,2.62611,3807.9,3807.8,0.57562779]
[1717756196578,2.62611,3807.9,3807.8,0.02397214]
[1717756196916,2.62611,3807.9,3807.7,0.55165565]
[1717756197149,2.62611,3807.9,3807.8,0.02397214]
[1717756197477,2.62611,3807.9,3807.7,0.55165565]
[1717756197695,2.62611,3807.9,3807.8,0.02397214]
[1717756198218,2.62611,3807.9,3807.7,0.55165565]
[1717756198422,2.62611,3807.9,3807.8,0.02397214]
[1717756198799,2.62611,3807.9,3807.7,0.55165565]
[1717756198978,2.62611,3807.9,3807.8,0.02397214]
[1717756199174,2.62611,3807.9,3807.7,0.55165565]
[1717756199404,2.62611,3807.9,3807.8,0.02397214]
[1717756199832,2.62611,3807.9,3807.7,0.55165565]
[1717756200020,2.62611,3807.9,3807.8,0.02397214]
[1717756204013,3.37611,3807.9,3807.8,0.02397214]
[1717756204413,5.65431,3807.9,3807.8,0.02397214]
[1717756205621,6.43931,3807.9,3807.8,0.02397214]
[1717756207260,0.75,3808.1,3807.8,0.02397214]
[1717756207464,3.0,3808.5,3807.8,0.57562779]
[1717756207632,0.75,3808.3,3808.1,3.27956842]
[1717756207831,3.41084,3808.4,3808.1,3.27956842]
[1717756208026,3.41084,3808.4,3808.2,2.65117739]
[1717756208266,3.41084,3808.4,3808.2,0.82566842]
[1717756208972,2.62562,3808.7,3808.2,0.82566842]
[1717756209132,2.62562,3808.7,3808.6,0.55085603]
[1717756209330,2.62562,3808.7,3808.5,0.55085603]
[1717756209526,2.62562,3808.7,3808.6,0.55085603]
[1717756210458,3.41062,3808.7,3808.6,0.55085603]
[1717756211473,2.62562,3808.7,3808.6,0.55085603]
[1717756212370,2.62562,3808.7,3808.5,0.55085603]
[1717756212574,1.535,3808.6,3808.5,0.55085603]
[1717756212743,0.785,3808.6,3808.2,0.55085603]
[1717756213252,0.785,3808.6,3808.3,0.55085603]
[1717756213777,0.785,3808.6,3808.4,0.55085603]
[1717756214084,0.785,3808.6,3808.3,0.55085603]
[1717756214866,3.41062,3808.7,3808.3,0.55085603]
[1717756215303,10.0554,3809.0,3808.3,0.55085603]
[1717756215606,0.75,3808.9,3808.4,5.62290603]
[1717756215762,2.62519,3809.3,3808.7,0.82566842]
[1717756215966,2.62519,3809.3,3808.9,0.55035279]
[1717756216200,2.62519,3809.3,3809.0,0.55035279]
[1717756216201,3.37519,3809.3,3809.0,0.55035279]
[1717756216388,3.37519,3809.3,3808.9,0.55035279]
[1717756218369,3.37519,3809.3,3808.8,0.55035279]
[1717756218979,2.62519,3809.3,3808.8,0.55035279]
[1717756219307,3.37519,3809.3,3808.7,0.55035279]
[1717756219504,0.785,3809.2,3808.7,0.55035279]
[1717756219800,1.535,3809.2,3808.7,0.55035279]
[1717756220002,2.6253,3809.1,3808.7,0.55035279]
[1717756220406,2.62544,3808.9,3808.6,0.55035279]
[1717756220607,0.785,3808.8,3808.3,0.55035279]
[1717756220778,1.535,3808.8,3808.2,0.55035279]
[1717756221184,0.785,3808.8,3808.1,3.17628279]
[1717756221416,2.62556,3808.7,3808.1,3.17628279]
[1717756221594,2.62556,3808.7,3808.2,0.55035279]
[1717756222176,2.62556,3808.7,3808.1,3.17628279]
[1717756223209,2.62556,3808.7,3808.2,0.55035279]
[1717756223398,2.62556,3808.7,3808.1,3.17628279]
[1717756224282,2.62556,3808.7,3808.1,0.55035279]
[1717756224487,0.75,3808.6,3808.1,0.55035279]
[1717756225509,2.62556,3808.7,3808.1,0.55035279]
[1717756226875,3.37556,3808.7,3808.1,0.55035279]
[1717756228131,2.62572,3808.5,3808.1,0.55035279]
[1717756232899,2.62585,3808.3,3808.1,0.55035279]
[1717756233098,2.62585,3808.3,3808.0,0.55035279]
[1717756237804,2.62585,3808.3,3808.1,0.55035279]
[1717756240348,2.62566,3808.6,3808.1,0.55035279]
[1717756240649,2.62546,3808.9,3808.3,2.62584]
[1717756240845,2.62546,3808.9,3808.4,0.55035279]
[1717756241053,2.62546,3808.9,3808.3,2.62584]
[1717756241054,7.43,3809.0,3808.7,0.55035279]
[1717756241207,7.43,3809.0,3808.8,0.55035279]
[1717756243815,2.62528,3809.2,3808.8,0.55035279]
[1717756244333,2.62528,3809.2,3808.7,2.93545279]
[1717756244532,2.62528,3809.2,3808.8,0.55035279]
[1717756248063,2.62528,3809.2,3808.9,0.55035279]
[1717756251238,2.62528,3809.2,3809.0,0.55035279]
[1717756256274,4.783698,3809.2,3809.0,0.55035279]
[1717756258513,4.033698,3809.2,3809.0,0.55035279]
[1717756258725,2.62528,3809.2,3809.0,0.55035279]
[1717756260794,0.785,3809.1,3809.0,0.55035279]
[1717756262112,1.535,3809.1,3809.0,0.55035279]
[1717756262313,3.9159,3809.1,3809.0,0.55035279]
[1717756262728,0.75,3808.8,3808.7,0.55035279]
[1717756262930,3.37549,3808.8,3808.6,0.55035279]
[1717756263504,3.37549,3808.8,3808.4,0.82566842]
[1717756263505,3.37549,3808.8,3808.5,0.55035279]
[1717756263826,0.75,3808.6,3808.5,0.55035279]
[1717756265654,3.37549,3808.8,3808.5,0.55035279]
[1717756266854,3.37549,3808.8,3808.6,0.55035279]
[1717756267318,2.62549,3808.8,3808.6,0.55035279]
[1717756267528,2.62549,3808.8,3808.7,0.55035279]
[1717756268779,2.62549,3808.8,3808.6,0.82566842]
[1717756269334,2.62549,3808.8,3808.7,2.65081344]
[1717756276115,2.62549,3808.8,3808.7,0.82566842]
[1717756276289,0.75,3808.7,3808.6,0.82566842]
[1717756276455,0.75,3808.7,3808.6,2.65086673]
[1717756276656,2.62563,3808.6,3808.5,0.82566842]
[1717756276989,2.62563,3808.6,3808.5,2.65097418]
[1717756278675,3.37563,3808.6,3808.5,2.65097418]
[1717756281382,2.62563,3808.6,3808.5,2.65097418]
[1717756282315,2.62563,3808.6,3808.5,1.82530576]
[1717756286232,2.62563,3808.6,3808.5,2.92731837]
[1717756300308,2.62563,3808.6,3808.5,3.20174001]
[1717756300815,2.62563,3808.6,3808.5,1.82530576]
[1717756301107,2.62563,3808.6,3808.5,2.92774293]
[1717756303609,2.62563,3808.6,3808.5,1.82530576]
[1717756304025,2.62563,3808.6,3808.5,2.9279193]
[1717756305532,2.62563,3808.6,3808.5,1.82530576]
[1717756305896,3.37563,3808.6,3808.5,1.82530576]
[1717756306806,2.62563,3808.6,3808.5,1.82530576]
[1717756307732,2.62563,3808.6,3808.5,3.20174001]
[1717756308122,2.62563,3808.6,3808.5,1.82530576]
[1717756309234,2.62563,3808.6,3808.5,2.92829619]
[1717756309734,2.62563,3808.6,3808.5,1.82530576]
[1717756311834,3.37563,3808.6,3808.5,1.82530576]
[1717756312498,2.62563,3808.6,3808.5,1.82530576]
[1717756318534,2.62563,3808.6,3808.5,3.20174001]
[1717756318727,2.62563,3808.6,3808.5,1.82530576]
[1717756319127,3.37563,3808.6,3808.5,1.82530576]
[1717756319331,3.37563,3808.6,3808.5,3.20174001]
[1717756320658,3.37563,3808.6,3808.5,1.82530576]
[1717756321361,3.37563,3808.6,3808.5,3.20174001]
[1717756321560,3.37563,3808.6,3808.5,1.82530576]
[1717756322370,3.37563,3808.6,3808.5,3.20174001]
[1717756322569,3.37563,3808.6,3808.5,3.20459825]
[1717756323978,3.37563,3808.6,3808.5,1.82530576]
[1717756324650,3.37563,3808.6,3808.5,3.20459825]
[1717756326571,3.37563,3808.6,3808.5,3.20458804]
[1717756331493,2.62563,3808.6,3808.5,3.20458804]
[1717756335673,2.62563,3808.6,3808.5,1.82530576]
[1717756336116,2.62563,3808.6,3808.5,3.20455045]
[1717756336812,2.62563,3808.6,3808.5,3.20454643]
[1717756338812,2.2643,3809.2,3808.5,4.65683855]
[1717756339019,2.2643,3809.2,3809.0,0.82752748]
[1717756339213,4.88952,3809.2,3809.1,1.82530576]
[1717756339390,6.01245,3809.2,3809.1,1.82530576]
[1717756339988,6.01245,3809.2,3809.1,2.652547]
[1717756341050,4.88952,3809.2,3809.1,2.652547]
[1717756341345,5.67452,3809.2,3809.1,2.652547]
[1717756344313,5.67452,3809.2,3809.0,0.82724124]
[1717756345217,0.75,3809.1,3809.0,0.82724124]
[1717756345428,0.75,3809.1,3809.0,2.6523239]
[1717756345639,2.62536,3809.0,3808.9,0.82724124]
[1717756345840,2.62536,3809.0,3808.9,2.65239228]
[1717756346042,2.62536,3809.0,3808.9,1.82515104]
[1717756350609,2.62536,3809.0,3808.9,2.65186469]
[1717756351153,2.62536,3809.0,3808.9,1.82515104]
[1717756351650,2.62536,3809.0,3808.9,2.92852102]
[1717756352659,2.62536,3809.0,3808.9,1.82515104]
[1717756355056,2.62519,3809.3,3808.9,1.82515104]
[1717756355360,2.62519,3809.3,3809.2,0.55104693]
[1717756355716,2.62519,3809.3,3809.2,1.82491684]
[1717756356115,2.62519,3809.3,3809.2,2.65133602]
[1717756359765,2.62519,3809.3,3809.1,0.82641918]
[1717756361276,3.41019,3809.3,3809.1,0.82641918]
[1717756362086,2.62529,3809.1,3809.0,0.82641918]
[1717756362274,2.62529,3809.1,3809.0,2.6514238]
[1717756362680,2.62529,3809.1,3809.0,1.82500462]
[1717756375904,3.37529,3809.1,3809.0,1.82500462]
[1717756376089,3.37529,3809.1,3809.0,2.65143879]
[1717756376599,3.37529,3809.1,3808.9,0.82643417]
[1717756377588,0.785,3809.0,3808.9,0.82643417]
[1717756377807,3.37542,3808.9,3808.8,0.82643417]
[1717756378051,3.37542,3808.9,3808.8,2.65161984]
[1717756378853,5.66052,3808.9,3808.8,2.65161984]
[1717756379032,5.66052,3808.9,3808.7,0.82643417]
[1717756379190,0.785,3808.8,3808.7,0.82643417]
[1717756379394,0.785,3808.8,3808.7,2.6516874]
[1717756381332,2.62556,3808.7,3808.6,0.82643417]
[1717756381489,2.62556,3808.7,3808.6,2.65175696]
[1717756381889,3.37556,3808.7,3808.6,2.65175696]
[1717756382601,3.37556,3808.7,3808.6,2.92869277]
[1717756382989,3.37556,3808.7,3808.6,1.82532279]
[1717756384128,3.37556,3808.7,3808.6,2.65204099]
[1717756384307,3.37556,3808.7,3808.6,1.82532279]
[1717756384821,3.37556,3808.7,3808.6,2.65202619]
[1717756385594,6.371326,3808.7,3808.6,0.55112164]
[1717756385895,6.371326,3808.7,3808.5,0.55112164]
[1717756386094,6.371326,3808.7,3808.4,0.55112164]
[1717756386095,3.3757,3808.5,3808.4,0.55112164]
[1717756386294,4.1607,3808.5,3808.4,0.55112164]
[1717756386525,6.5756,3808.5,3808.4,0.55112164]
[1717756387320,7.2976166,3808.5,3808.4,0.55112164]
[1717756387630,7.2976166,3808.5,3808.3,0.55112164]
[1717756387830,0.785,3808.4,3808.3,0.55112164]
[1717756389163,3.37584,3808.3,3808.1,0.8267034]
[1717756389470,3.37584,3808.3,3808.2,2.65212871]
[1717756389671,3.37584,3808.3,3808.1,0.8267034]
[1717756389825,2.62584,3808.3,3808.1,0.8267034]
[1717756390029,3.37584,3808.3,3808.1,0.8267034]
[1717756392251,3.37584,3808.3,3808.2,0.55052769]
[1717756393760,3.37584,3808.3,3807.9,1.10336998]
[1717756393761,3.37584,3808.3,3808.1,0.8267034]
[1717756394568,3.37584,3808.3,3808.2,0.55040006]
[1717756394765,2.62584,3808.3,3808.2,0.55040006]
[1717756394968,3.41069,3808.6,3808.2,2.4282]
[1717756395180,3.41069,3808.6,3808.4,0.55037056]
[1717756395331,4.16069,3808.6,3808.4,0.55037056]
[1717756395531,3.41069,3808.6,3808.4,0.55037056]
[1717756395732,2.62569,3808.6,3808.4,0.55037056]
[1717756398174,2.62569,3808.6,3808.3,0.55037056]
[1717756398837,5.25138,3808.6,3808.3,0.55037056]
[1717756399033,2.62577,3808.4,3808.3,0.55037056]
[1717756399249,2.62577,3808.4,3808.2,0.55037056]
[1717756399250,3.41077,3808.4,3808.2,0.55037056]
[1717756399435,0.75,3808.3,3808.2,0.55037056]
[1717756400072,2.62591,3808.2,3808.1,0.55037056]
[1717756401249,2.62591,3808.2,3808.0,0.55037056]
[1717756402069,2.62591,3808.2,3808.1,0.55037056]
[1717756405598,2.62591,3808.2,3807.9,0.8267034]
[1717756405599,2.62591,3808.2,3807.9,0.55037056]
[1717756405792,2.62605,3808.0,3807.9,0.55037056]
[1717756406019,2.62605,3808.0,3807.9,2.65231617]
[1717756406584,2.62605,3808.0,3807.8,3.2251034]
[1717756407207,2.62605,3808.0,3807.9,2.65223515]
[1717756407402,2.62605,3808.0,3807.8,3.2251034]
[1717756408134,2.62605,3808.0,3807.9,2.65228865]
[1717756408629,3.41105,3808.0,3807.9,2.65228865]
[1717756408827,3.41105,3808.0,3807.8,0.8267034]
[1717756409028,3.41105,3808.0,3807.9,0.55028625]
[1717756410228,0.75,3807.9,3807.8,0.55028625]
[1717756411220,2.62618,3807.8,3807.6,0.9547269]
[1717756411601,2.62618,3807.8,3807.7,0.55029661]
[1717756411998,2.62618,3807.8,3807.6,0.9547269]
[1717756414222,2.62618,3807.8,3807.7,0.5502789]
[1717756417142,0.75,3807.7,3807.6,0.1280235]
[1717756421155,0.75,3807.7,3807.6,0.15936046]
[1717756421509,0.75,3807.7,3807.6,0.1280235]
[1717756422627,1.535,3807.7,3807.6,0.1280235]
[1717756427625,0.75,3807.7,3807.6,0.1280235]
[1717756428039,0.75,3807.7,3807.6,0.15123658]
[1717756429571,0.75,3807.7,3807.6,0.70151548]
[1717756430363,3.41118,3807.8,3807.6,0.70151548]
[1717756430566,4.16118,3807.8,3807.6,0.70151548]
[1717756435587,0.785,3807.7,3807.6,0.70151548]
[1717756440182,0.785,3807.7,3807.6,0.15123658]
[1717756440970,0.785,3807.7,3807.6,0.0780235]
[1717756441176,1.698498,3807.7,3807.6,0.0780235]
[1717756445676,2.448498,3807.7,3807.6,0.0780235]
[1717756447094,1.698498,3807.7,3807.6,0.0780235]
[1717756449808,1.698498,3807.7,3807.6,0.6283024]
[1717756450611,1.698498,3807.7,3807.6,0.10134204]
[1717756451013,1.698498,3807.7,3807.6,0.0780235]
[1717756454117,1.698498,3807.7,3807.6,0.6283024]
[1717756454791,1.698498,3807.7,3807.6,0.65160264]
[1717756454992,1.698498,3807.7,3807.6,0.6283024]
[1717756455218,1.698498,3807.7,3807.6,2.75381375]
[1717756455594,1.698498,3807.7,3807.6,0.10132374]
[1717756455918,1.698498,3807.7,3807.6,2.75382697]
[1717756456084,1.698498,3807.7,3807.6,0.92802714]
[1717756456284,1.698498,3807.7,3807.6,0.10132374]
[1717756457617,1.698498,3807.7,3807.6,0.65262705]
[1717756458781,1.698498,3807.7,3807.6,0.10132374]
[1717756458982,1.698498,3807.7,3807.6,0.652681]
[1717756459183,1.698498,3807.7,3807.6,0.10132374]
[1717756460019,1.698498,3807.7,3807.6,0.65271795]
[1717756460690,1.698498,3807.7,3807.6,0.10132374]
[1717756464732,1.698498,3807.7,3807.6,2.75386818]
[1717756465630,1.698498,3807.7,3807.6,0.10132374]
[1717756467031,1.698498,3807.7,3807.6,0.65284597]
[1717756467429,2.448498,3807.7,3807.6,0.65284597]
[1717756467627,4.831398,3807.7,3807.6,0.65284597]
[1717756467828,4.831398,3807.7,3807.6,0.0780235]
[1717756468019,4.831398,3807.7,3807.6,0.10131539]
[1717756468227,4.831398,3807.7,3807.6,0.0780235]
[1717756470615,3.3766,3807.2,3807.1,1.10336998]
[1717756470819,3.3766,3807.2,3806.6,1.16637338]
[1717756470820,6.00374,3806.8,3806.6,1.16637338]
[1717756471015,6.00374,3806.8,3806.6,0.0630034]
[1717756471222,0.785,3806.7,3806.6,0.0630034]
[1717756471415,1.463874,3806.7,3806.6,0.0630034]
[1717756471622,2.213874,3806.7,3806.6,0.0630034]
[1717756474531,1.428874,3806.7,3806.6,0.0630034]
[1717756474741,2.213874,3806.7,3806.6,0.0630034]
[1717756476828,1.428874,3806.7,3806.6,0.0630034]
[1717756477026,2.213874,3806.7,3806.6,0.0630034]
[1717756477330,0.75,3805.1,3805.0,5.0]
[1717756478250,3.1493,3805.1,3805.0,5.0]
[1717756478552,7.6843,3805.1,3805.0,5.0]
[1717756479259,0.75,3804.2,3803.8,0.1280235]
[1717756479557,0.785,3803.9,3803.8,0.1280235]
[1717756479943,0.75,3804.2,3803.8,0.1280235]
[1717756480122,2.62888,3803.9,3803.8,0.1280235]
[1717756482342,2.62858,3804.4,3803.8,0.1280235]
[1717756482844,2.62858,3804.4,3803.9,0.0239597]
[1717756483371,2.62858,3804.4,3803.8,0.1280235]
[1717756483865,2.62877,3804.1,3803.8,0.1280235]
[1717756485746,2.62877,3804.1,3803.9,0.02390468]
[1717756487871,2.62877,3804.1,3803.9,0.57390468]
[1717756488565,2.62877,3804.1,3803.9,0.02390468]
[1717756490156,2.62877,3804.1,3803.8,0.1280235]
[1717756500752,2.62877,3804.1,3803.9,0.02662877]
[1717756501056,2.62877,3804.1,3803.8,0.1280235]
[1717756501487,2.62877,3804.1,3803.9,0.02662877]
[1717756504630,2.62877,3804.1,3803.9,0.03453537]
[1717756506314,3.37877,3804.1,3803.9,0.03453537]
[1717756506488,2.62877,3804.1,3803.9,0.03453537]
[1717756507595,3.37877,3804.1,3803.9,0.03453537]
[1717756508073,2.62877,3804.1,3803.9,0.03453537]
[1717756509769,2.62877,3804.1,3803.9,0.02473268]
[1717756512115,3.37877,3804.1,3803.9,0.02473268]
[1717756512487,2.62877,3804.1,3803.9,0.02473268]
[1717756513081,2.62877,3804.1,3803.9,0.57316264]
[1717756514185,2.62877,3804.1,3804.0,0.54842996]
[1717756514584,2.62877,3804.1,3803.9,0.54842996]
[1717756514792,2.62877,3804.1,3804.0,0.02659892]
[1717756515206,2.62877,3804.1,3804.0,0.57502888]
[1717756516341,2.62877,3804.1,3804.0,0.02659892]
[1717756516536,2.62877,3804.1,3804.0,1.8541977]
[1717756517196,2.62877,3804.1,3804.0,2.95756768]
[1717756517379,6.056,3805.0,3804.0,2.95756768]
[1717756517583,0.75,3804.7,3804.5,0.82376785]
[1717756517821,2.62827,3804.8,3804.6,2.65102279]
[1717756518024,2.62827,3804.8,3804.6,0.84848873]
[1717756518682,2.62827,3804.8,3804.7,0.54938628]
[1717756518882,3.4317373,3804.8,3804.7,0.54938628]
[1717756519222,3.4317373,3804.8,3804.7,0.02471563]
[1717756519384,4.1817373,3804.8,3804.7,0.02471563]
[1717756519726,4.1817373,3804.8,3804.7,0.54938628]
[1717756519928,4.1817373,3804.8,3804.7,0.57410191]
[1717756520533,3.4317373,3804.8,3804.7,0.57410191]
[1717756520702,2.62827,3804.8,3804.7,0.02471563]
[1717756521033,2.62827,3804.8,3804.6,0.82376785]
[1717756521229,2.62827,3804.8,3804.7,0.02471563]
[1717756521724,2.62827,3804.8,3804.6,0.82376785]
[1717756522023,2.62827,3804.8,3804.7,0.02471563]
[1717756522233,3.344897,3804.8,3804.7,0.02471563]
[1717756522386,3.344897,3804.8,3804.6,0.82376785]
[1717756522585,3.344897,3804.8,3804.7,0.02471563]
[1717756523104,0.75,3806.1,3804.7,5.18184928]
[1717756523408,3.37777,3805.5,3805.3,0.55155545]
[1717756523579,3.37777,3805.5,3805.4,1.82693172]
[1717756524220,3.37777,3805.5,3805.4,0.55120929]
[1717756524221,3.794347,3805.5,3805.4,0.55120929]
[1717756524421,3.044347,3805.5,3805.4,0.55120929]
[1717756524595,2.62798,3805.2,3805.1,0.55120929]
[1717756524922,2.62812,3805.0,3804.9,0.55120929]
[1717756525122,2.62825,3804.8,3804.6,0.55120929]
[1717756525805,2.62825,3804.8,3804.7,0.55120929]
[1717756526183,2.62825,3804.8,3804.5,0.55120929]
[1717756528618,2.62808,3805.1,3804.6,0.55120929]
[1717756528804,3.37808,3805.1,3804.7,0.55120929]
[1717756529011,2.62808,3805.1,3804.7,0.55120929]
[1717756531627,2.62808,3805.1,3804.8,0.06962554]
[1717756531995,1.538,3805.3,3804.7,0.55120929]
[1717756532200,0.416577,3805.5,3804.9,0.0695565]
[1717756532201,2.62788,3805.4,3804.9,0.0695565]
[1717756532404,5.0804057,3805.4,3804.8,0.06956268]
[1717756532597,4.3304057,3805.4,3805.0,0.06955032]
[1717756532934,0.75,3805.3,3805.1,0.06954415]
[1717756533348,2.62799,3805.2,3804.7,0.55120929]
[1717756533521,2.62799,3805.2,3804.8,0.55]
[1717756534499,2.62799,3805.2,3804.7,0.55]
[1717756534928,3.37799,3805.2,3804.7,0.55]
[1717756536166,2.6283,3804.8,3804.6,0.55120929]
[1717756536543,2.6283,3804.8,3804.5,0.55120929]
[1717756537369,2.6283,3804.8,3804.4,0.55120929]
[1717756539165,2.6283,3804.8,3804.5,0.06963097]
[1717756542446,2.62839,3804.6,3804.5,0.06963097]
[1717756542939,2.62839,3804.6,3804.0,0.55120929]
[1717756543141,0.75,3804.5,3804.1,0.61968449]
[1717756543357,2.62839,3804.6,3804.1,0.61968449]
[1717756543546,2.62854,3804.4,3804.1,0.61968449]
[1717756545078,2.62854,3804.4,3804.1,0.62089378]
[1717756545778,2.62854,3804.4,3804.1,0.06968449]
[1717756546279,2.62854,3804.4,3804.1,0.62089378]
[1717756548972,0.75,3804.3,3804.1,0.62089378]
[1717756549273,2.62867,3804.2,3804.1,0.06968449]
[1717756549849,2.62867,3804.2,3803.8,0.67923279]
[1717756550045,2.62867,3804.2,3804.1,0.06990191]
[1717756550367,2.62881,3804.0,3803.8,0.67923279]
[1717756552301,2.62881,3804.0,3803.8,0.1280235]
[1717756552951,0.75,3803.9,3803.8,0.1280235]
[1717756554003,0.75,3803.9,3803.8,0.19801206]
[1717756554490,0.75,3803.9,3803.8,0.74922135]
[1717756554677,0.75,3803.9,3803.8,0.19801206]
[1717756557099,2.62881,3804.0,3803.8,0.74922135]
[1717756559705,2.62881,3804.0,3803.9,0.55120929]
[1717756559909,2.62881,3804.0,3803.8,0.74922135]
[1717756560089,2.62881,3804.0,3803.9,0.07005835]
[1717756562410,4.16681,3804.0,3803.9,0.07005835]
[1717756563576,4.823441,3804.0,3803.9,0.07005835]